lending/lending_fUSD_20260124
["ID","MTS","AMOUNT","RATE_DAILY","PERIOD"]
[403193370,1769262648488,-500.0,0.00017823,2]
[403193371,1769262648497,-150.0,0.00017836,2]
[403193372,1769262648507,-1000.0,0.0001784,2]
[403193373,1769262648521,-265.54,0.00017842,2]
[403193374,1769262648530,-183.59,0.00017845,2]
[403193375,1769262648540,-25000.0,0.00017847,3]
[403193376,1769262648550,-25000.0,0.00017856,3]
[403193377,1769262648560,-200.0,0.00017856,2]
[403193378,1769262648570,-500.0,0.00017863,2]
[403193379,1769262648579,-500.0,0.00017863,2]
[403193380,1769262648588,-1170.0,0.00017865,2]
[403193381,1769262648598,-25000.0,0.00017865,3]
[403193382,1769262648607,-151.0,0.00017867,2]
[403193383,1769262648618,-151.0,0.00017867,2]
[403193384,1769262648627,-151.0,0.00017867,2]
[403193385,1769262648638,-151.0,0.00017867,2]
[403193386,1769262648647,-151.0,0.00017867,2]
[403193387,1769262648656,-151.0,0.00017867,2]
[403193388,1769262648666,-151.0,0.00017867,2]
[403193389,1769262648675,-151.0,0.00017867,2]
[403193390,1769262648684,-151.0,0.00017867,2]
[403193391,1769262648694,-166.39156659,0.00017867,2]
[403193392,1769262648703,-265.54,0.00017867,2]
[403193393,1769262648713,-25000.0,0.00017874,3]
[403193394,1769262648722,-25000.0,0.00017882,3]
[403193395,1769262648731,-150.0,0.00017884,2]
[403193396,1769262648952,-1000.0,0.0001789,2]
[403193397,1769262648961,-311.60217601,0.0001789,2]
[403193398,1769262648971,-25000.0,0.00017891,3]
[403193399,1769262648979,-155.71,0.00017892,2]
[403193400,1769262648989,-265.53873386,0.00017893,2]
[403193401,1769262648998,-1170.0,0.00017895,2]
[403193402,1769262649007,-3552.7,0.00017899,2]
[403193403,1769262649017,-500.0,0.00017899,2]
[403193404,1769262649026,-1270.11454216,0.000179,2]
[403193405,1769262649035,-1189.92243531,0.000179,3]
[403193406,1769262649044,-4840.1444,0.000179,2]
[403193407,1769262649053,-25000.0,0.000179,3]
[403193408,1769262649063,-1000.0,0.000179,2]
[403193409,1769262649072,-266.37387715,0.000179,2]
[403193410,1769262649081,-457.09279657,0.000179,2]
[403193411,1769262649090,-10031.62268467,0.000179,2]
[403193412,1769262649099,-190.80620809,0.000179,3]
[403193413,1769262649109,-3339.22111077,0.000179,2]
[403193414,1769262649119,-5581.0,0.000179,2]
[403193415,1769262649129,-470.62193096,0.00017918,2]
[403193416,1769262649139,-500.0,0.00017918,2]
[403193417,1769262649148,-155.71,0.00017918,2]
[403193418,1769262649157,-159.59843399,0.00017926,2]
[403193419,1769262649167,-1000.0,0.00017943,2]
[403193420,1769262649176,-155.71,0.00017945,2]
[403193422,1769262649185,-5800.0,0.00017949,2]
[403193423,1769262649195,-220.12,0.00017949,2]
[403193424,1769262649204,-200.0,0.00017954,2]
[403193425,1769262649213,-200.0,0.00017954,2]
[403193426,1769262649223,-200.0,0.00017954,2]
[403193427,1769262649233,-5800.0,0.00017958,2]
[403193428,1769262649243,-150.0,0.00017965,2]
[403193429,1769262649253,-5800.0,0.00017966,2]
[403193430,1769262649263,-500.0,0.0001797,2]
[403193431,1769262649272,-1000.0,0.0001797,2]
[403193432,1769262649281,-1000.0,0.0001797,2]
[403193433,1769262649290,-500.0,0.0001797,2]
[403193434,1769262649299,-500.0,0.0001797,2]
[403193435,1769262649309,-1000.0,0.0001797,2]
[403193436,1769262649318,-500.0,0.0001797,2]
[403193437,1769262649328,-1000.0,0.0001797,2]
[403193438,1769262649337,-500.0,0.0001797,2]
[403193439,1769262649346,-1000.0,0.0001797,2]
[403193440,1769262649355,-500.0,0.0001797,2]
[403193441,1769262649365,-1000.0,0.0001797,2]
[403193442,1769262649375,-1425.13914229,0.0001797,2]
[403193443,1769262649385,-601.31337833,0.0001797,2]
[403193444,1769262649395,-359.76179104,0.00017971,2]
[403193445,1769262649404,-15055.0,0.00017973,2]
[403193446,1769262649413,-500.0,0.00017973,2]
[403193447,1769262649422,-500.0,0.00017973,2]
[403193448,1769262649431,-573.18204786,0.00017973,2]
[403193449,1769262649441,-500.0,0.00017973,2]
[403193450,1769262649450,-500.0,0.00017973,2]
[403193451,1769262649459,-500.0,0.00017973,2]
[403193452,1769262649469,-150.0,0.00017973,2]
[403193453,1769262649478,-500.0,0.00017973,2]
[403193454,1769262649487,-500.0,0.00017973,2]
[403193455,1769262649497,-500.0,0.00017973,2]
[403193456,1769262649506,-161.20666181,0.00017973,2]
[403193457,1769262649520,-333.14308792,0.00017973,2]
[403193458,1769262649529,-500.0,0.00017973,2]
[403193459,1769262649537,-500.0,0.00017973,2]
[403193460,1769262649547,-500.0,0.00017973,2]
[403193461,1769262649556,-500.0,0.00017973,2]
[403193462,1769262649565,-500.0,0.00017973,2]
[403193463,1769262649574,-500.0,0.00017973,2]
[403193464,1769262649584,-500.0,0.00017973,2]
[403193465,1769262649595,-500.0,0.00017973,2]
[403193466,1769262649604,-500.0,0.00017973,2]
[403193467,1769262649613,-150.87644931,0.00017973,2]
[403193468,1769262649622,-521.52144255,0.00017973,2]
[403193469,1769262649631,-500.0,0.00017973,2]
[403193470,1769262649640,-150.0,0.00017973,2]
[403193471,1769262649649,-300.0,0.00017973,2]
[403193472,1769262649658,-161.7441045,0.00017973,2]
[403193473,1769262649667,-500.0,0.00017973,2]
[403193474,1769262649676,-500.0,0.00017973,2]
[403193475,1769262649685,-500.0,0.00017973,2]
[403193476,1769262649694,-500.0,0.00017973,2]
[403193477,1769262649703,-500.0,0.00017973,2]
[403193478,1769262649712,-500.0,0.00017973,2]
[403193479,1769262649721,-500.0,0.00017973,2]
[403193480,1769262649730,-500.0,0.00017973,2]
[403193481,1769262649739,-500.0,0.00017973,2]
[403193482,1769262649748,-336.33747242,0.00017973,2]
[403193483,1769262649758,-558.82608128,0.00017973,2]
[403193484,1769262649767,-500.0,0.00017973,2]
[403193485,1769262649776,-500.0,0.00017973,2]
[403193486,1769262649785,-160.04899722,0.00017973,2]
[403193487,1769262649794,-500.0,0.00017973,2]
[403193488,1769262649803,-500.0,0.00017973,2]
[403193489,1769262649812,-160.05160425,0.00017973,2]
[403193490,1769262649821,-157.31967869,0.00017973,2]
[403193491,1769262649830,-500.0,0.00017973,2]
[403193492,1769262649840,-500.0,0.00017973,2]
[403193493,1769262649849,-160.95253726,0.00017973,2]
[403193494,1769262649858,-160.05036115,0.00017973,2]
[403193495,1769262649867,-163.10376799,0.00017973,2]
[403193496,1769262649876,-500.0,0.00017973,2]
[403193497,1769262649886,-208.11665623,0.00017973,2]
[403193498,1769262649895,-500.0,0.00017973,2]
[403193499,1769262649904,-500.0,0.00017973,2]
[403193500,1769262649913,-500.0,0.00017973,2]
[403193501,1769262649922,-160.05242782,0.00017973,2]
[403193502,1769262649931,-160.04998238,0.00017973,2]
[403193503,1769262649941,-500.0,0.00017973,2]
[403193504,1769262649950,-180.05440168,0.00017973,2]
[403193505,1769262649961,-500.0,0.00017973,2]
[403193506,1769262649971,-512.1744801,0.00017973,2]
[403193507,1769262649980,-160.0507877,0.00017973,2]
[403193508,1769262649990,-500.0,0.00017973,2]
[403193509,1769262649999,-161.03754612,0.00017973,2]
[403193510,1769262650008,-284.08136107,0.00017973,2]
[403193511,1769262650019,-500.0,0.00017973,2]
[403193512,1769262650029,-508.83270828,0.00017973,2]
[403193513,1769262650039,-548.15607658,0.00017973,2]
[403193514,1769262650049,-161.24700646,0.00017973,2]
[403193515,1769262650059,-169.51216753,0.00017973,2]
[403193516,1769262650070,-500.0,0.00017973,2]
[403193517,1769262650080,-500.0,0.00017973,2]
[403193518,1769262650092,-557.48260843,0.00017973,2]
[403193519,1769262650101,-164.56853003,0.00017973,2]
[403193520,1769262650111,-162.86883444,0.00017973,2]
[403193521,1769262650120,-163.215227,0.00017973,2]
[403193522,1769262650129,-500.0,0.00017973,2]
[403193523,1769262650139,-160.04994992,0.00017973,2]
[403193524,1769262650148,-161.29695591,0.00017973,2]
[403193525,1769262650157,-159.93585942,0.00017973,2]
[403193526,1769262650167,-160.03318119,0.00017973,2]
[403193527,1769262650176,-500.0,0.00017973,2]
[403193528,1769262650186,-160.03828545,0.00017973,2]
[403193529,1769262650196,-500.0,0.00017973,2]
[403193530,1769262650205,-158.06916035,0.00017973,2]
[403193531,1769262650215,-160.05079201,0.00017973,2]
[403193532,1769262650224,-500.0,0.00017973,2]
[403193533,1769262650234,-500.0,0.00017973,2]
[403193534,1769262650244,-500.0,0.00017973,2]
[403193535,1769262650253,-500.0,0.00017973,2]
[403193536,1769262650262,-500.0,0.00017973,2]
[403193537,1769262650273,-500.0,0.00017973,2]
[403193538,1769262650285,-500.0,0.00017973,2]
[403193539,1769262650295,-500.0,0.00017973,2]
[403193540,1769262650304,-308.89625283,0.00017973,2]
[403193541,1769262650315,-167.78129088,0.00017973,2]
[403193542,1769262650325,-162.47485834,0.00017973,2]
[403193543,1769262650335,-161.91357387,0.00017973,2]
[403193544,1769262650344,-208.57012707,0.00017973,2]
[403193545,1769262650353,-500.0,0.00017973,2]
[403193546,1769262650363,-500.0,0.00017973,2]
[403193547,1769262650372,-500.0,0.00017973,2]
[403193548,1769262650382,-166.43972344,0.00017973,2]
[403193549,1769262650391,-500.0,0.00017973,2]
[403193550,1769262650401,-485.5720463,0.00017973,2]
[403193551,1769262650410,-500.0,0.00017973,2]
[403193552,1769262650419,-500.0,0.00017973,2]
[403193553,1769262650428,-165.72236604,0.00017973,2]
[403193554,1769262650437,-500.0,0.00017973,2]
[403193555,1769262650447,-500.0,0.00017973,2]
[403193556,1769262650456,-511.74783648,0.00017973,2]
[403193557,1769262650465,-500.0,0.00017973,2]
[403193558,1769262650475,-150.0,0.00017973,2]
[403193559,1769262650484,-5800.0,0.00017975,2]
[403193560,1769262650493,-547.55,0.0001798,2]
[403193561,1769262650503,-500.0,0.00017982,2]
[403193562,1769262650514,-5800.0,0.00017983,2]
[403193563,1769262650525,-1000.0,0.0001799,2]
[403193564,1769262650534,-150.0,0.0001799,2]
[403193565,1769262650544,-857.10560289,0.0001799,2]
[403193566,1769262650555,-857.10560289,0.0001799,2]
[403193567,1769262650564,-5800.0,0.00017992,2]
[403193568,1769262650574,-152.734551,0.00017992,2]
[403193569,1769262650583,-1170.0,0.00017993,2]
[403193570,1769262650593,-8397.0313985,0.00017996,2]
[403193571,1769262650602,-151.0,0.00017997,2]
[403193572,1769262650611,-249.48172896,0.00017999,2]
[403193573,1769262650621,-300.0,0.00017999,2]
[403193574,1769262650630,-300.0,0.00017999,2]
[403193575,1769262650639,-300.0,0.00017999,2]
[403193576,1769262650649,-300.0,0.00017999,2]
[403193577,1769262650658,-300.0,0.00017999,2]
[403193578,1769262650667,-500.0,0.00017999,2]
[403193579,1769262650677,-500.0,0.00017999,2]
[403193580,1769262650686,-500.0,0.00017999,2]
[403193581,1769262650696,-500.0,0.00017999,2]
[403193582,1769262650705,-500.0,0.00017999,2]
[403193583,1769262650714,-500.0,0.00017999,2]
[403193584,1769262650724,-435.12786279,0.00017999,2]
[403193585,1769262650733,-300.0,0.00017999,2]
[403193586,1769262650743,-224351.4087597,0.00018,2]
[403193587,1769262650753,-4079215.00283518,0.00018,2]
[403193588,1769262650762,-2245369.81671203,0.00018,2]
[403193589,1769262652191,219.2397708,0.00011783,2]
[403193590,1769262653202,-390.36170643,0.00013699,2]
[403193591,1769262653213,-477.45687238,0.00016438,2]
[403193593,1769262654563,-22.54312762,0.00016438,2]
[403193594,1769262654574,-500.0,0.00016438,2]
[403193595,1769262654583,-500.0,0.00016438,2]
[403193596,1769262654593,-500.0,0.00016438,2]
[403193597,1769262654605,-500.0,0.00016438,2]
[403193598,1769262654615,-500.0,0.00016438,2]
[403193599,1769262654624,-466.81249029,0.00016438,2]
[403193600,1769262654634,-500.0,0.00016438,2]
[403193601,1769262654643,-500.0,0.00016438,2]
[403193602,1769262654654,-500.0,0.00016438,2]
[403193603,1769262654665,-500.0,0.00016438,2]
[403193604,1769262654674,-500.0,0.00016438,2]
[403193605,1769262654684,-500.0,0.00016438,2]
[403193606,1769262654693,-500.0,0.00016438,2]
[403193607,1769262654706,-500.0,0.00016438,2]
[403193608,1769262654716,-500.0,0.00016438,2]
[403193609,1769262654725,-500.0,0.00016438,2]
[403193610,1769262654735,-500.0,0.00016438,2]
[403193611,1769262654744,-500.0,0.00016438,2]
[403193612,1769262654754,-500.0,0.00016438,2]
[403193613,1769262654763,-500.0,0.00016438,2]
[403193614,1769262654773,-500.0,0.00016438,2]
[403193615,1769262654782,-500.0,0.00016438,2]
[403193616,1769262654791,-500.0,0.00016438,2]
[403193617,1769262654800,-500.0,0.00016438,2]
[403193618,1769262654813,-500.0,0.00016438,2]
[403193619,1769262654823,-500.0,0.00016438,2]
[403193620,1769262654832,-500.0,0.00016438,2]
[403193621,1769262654841,-471.47021457,0.00016438,2]
[403193622,1769262654853,-28.52978543,0.00016438,2]
[403193623,1769262654863,-500.0,0.00016438,2]
[403193624,1769262654872,-500.0,0.00016438,2]
[403193625,1769262654882,-500.0,0.00016438,2]
[403193626,1769262654891,-1261.88213047,0.00016541,2]
[403193627,1769262654902,-3278.46028753,0.00016541,2]
[403193628,1769262654917,-530.23719591,0.00016541,2]
[403193629,1769262654975,-1016.74074216,0.00016541,2]
[403193630,1769262654990,-1285.8,0.00016541,2]
[403193631,1769262655189,6950.29125159,0.00011684,2]
[403193632,1769262655708,194.63592023,0.00011783,2]
[403193634,1769262682570,500.0,0.00011783,2]
[403193635,1769262682684,500.0,0.00011783,2]
[403193636,1769262682744,500.0,0.00011783,2]
[403193637,1769262682790,470.59549852,0.00011783,2]
[403193678,1769262956038,300.0,0.00011781,2]
[403193733,1769263101430,186.55,0.00010185,2]
[403193813,1769263255204,-249.0,0.00012064,2]
[403193816,1769263271297,-166.66,0.00012064,2]
[403193824,1769263313899,150.0,0.00013,10]
[403193827,1769263324977,311.82,0.00011868,2]
[403193829,1769263340029,311.81,0.00011868,2]
[403194003,1769263534145,1651.53,0.00011,2]
[403194008,1769263548821,-2941.14,0.00011936,2]
[403194009,1769263562421,-222.33,0.00011992,2]
[403194010,1769263577792,-167.56639458,0.00012135,2]
[403194019,1769263687973,229.393993,7.945e-05,2]
[403194022,1769263724727,1600.0,0.00011808,2]
[403194049,1769263833377,-233.088946,0.00012146,2]
[403194050,1769263833386,-40.0897051,0.00012206,2]
[403194051,1769263833403,-1159.9102949,0.00012206,2]
[403194052,1769263833414,-250.0,0.00012207,2]
[403194053,1769263833423,-1686.39795458,0.00012207,2]
[403194054,1769263833471,-728.91649147,0.00012207,2]
[403194055,1769263833555,-2096.19324609,0.00012207,2]
[403194056,1769263833564,-326.49485471,0.00012207,2]
[403194057,1769263833574,-250.0,0.00012207,2]
[403194058,1769263833584,-250.0,0.00012223,2]
[403194059,1769263833593,-300.0,0.00012232,2]
[403194060,1769263833602,-2972.57,0.00012233,2]
[403194061,1769263833612,-2079.8,0.00012241,2]
[403194062,1769263833621,-269.76907948,0.00012274,2]
[403194063,1769263833630,-641.13336879,0.00012274,2]
[403194064,1769263833640,-255.36221237,0.00012274,2]
[403194065,1769263833649,-266.31761733,0.00012274,2]
[403194066,1769263833658,-24218.64364815,0.00012275,2]
[403194067,1769263833669,-741.54979015,0.00012275,2]
[403194068,1769263833680,-1246.151512,0.00012275,2]
[403194069,1769263833691,-588.97499999,0.00012275,2]
[403194070,1769263833706,-2279.48107587,0.00012275,2]
[403194071,1769263833717,-166614.80607719,0.00012275,2]
[403194072,1769263833728,-290.14408699,0.00012275,2]
[403194073,1769263833738,-658.19883048,0.00012275,2]
[403194074,1769263833750,-300.0,0.00012275,2]
[403194075,1769263833855,-289.56,0.00012275,2]
[403194076,1769263838423,-435.68171857,0.00012275,2]
[403194077,1769263838436,-2563.04084061,0.00012275,2]
[403194078,1769263838447,-517.63823787,0.00012275,2]
[403194079,1769263838459,-635.04213594,0.00012275,2]
[403194080,1769263838478,-726.4,0.00012275,2]
[403194114,1769263840359,-5320.45266561,0.00012275,2]
[403194115,1769263840456,-792574.23438058,0.00012275,2]
[403194116,1769263840466,-166.66,0.00012318,2]
[403194117,1769263840475,-206.58,0.0001237,2]
[403194118,1769263840485,-300.0,0.00012372,2]
[403194119,1769263840494,-300.0,0.00012372,2]
[403194120,1769263840503,-1019.0,0.00012373,2]
[403194121,1769263840512,-18248.77,0.00012375,2]
[403194122,1769263840522,-881.89,0.00012424,2]
[403194123,1769263840532,-881.89,0.0001245,2]
[403194124,1769263840542,-881.89,0.00012476,2]
[403194125,1769263840551,-881.89,0.00012503,2]
[403194126,1769263840561,-980.82,0.00012521,2]
[403194127,1769263840571,-881.89,0.00012529,2]
[403194128,1769263840581,-881.89,0.00012555,2]
[403194129,1769263840590,-166.66,0.00012572,2]
[403194130,1769263840600,-881.89,0.00012581,2]
[403194131,1769263840609,-477.39,0.000126,2]
[403194132,1769263840619,-881.89,0.00012607,2]
[403194133,1769263840629,-195.27306649,0.00012622,2]
[403194134,1769263840638,-881.89,0.00012633,2]
[403194135,1769263840646,-822.0,0.00012653,2]
[403194136,1769263840656,-881.89,0.0001266,2]
[403194137,1769263840665,-881.89,0.00012686,2]
[403194138,1769263840675,-881.89,0.00012712,2]
[403194139,1769263840684,-881.89,0.00012738,2]
[403194140,1769263840693,-881.89,0.00012764,2]
[403194141,1769263840703,-759.0,0.00012773,2]
[403194142,1769263840711,-1296.0,0.00012776,2]
[403194143,1769263840721,-881.89,0.0001279,2]
[403194144,1769263840731,-507.0,0.00012801,2]
[403194145,1769263840740,-881.89,0.00012816,2]
[403194146,1769263840749,-166.66,0.00012826,2]
[403194147,1769263840758,-881.89,0.00012843,2]
[403194148,1769263840767,-653.77203925,0.0001286,2]
[403194150,1769263840776,-881.89,0.00012869,2]
[403194152,1769263840785,-723.0,0.00012886,2]
[403194154,1769263840794,-150.0,0.00012892,2]
[403194157,1769263840803,-150.99,0.00012893,2]
[403194160,1769263840812,-9999.99,0.00012893,2]
[403194162,1769263840821,-9999.99,0.00012893,2]
[403194164,1769263840830,-881.89,0.00012895,2]
[403194165,1769263840840,-939.0,0.00012911,2]
[403194166,1769263840849,-881.89,0.00012921,2]
[403194168,1769263840859,-1000.0,0.00012925,2]
[403194170,1769263840867,-9712.15874453,0.00012925,2]
[403194172,1769263840876,-500.0,0.00013017,2]
[403194174,1769263840886,-500.0,0.00013017,2]
[403194175,1769263840895,-500.0,0.00013017,2]
[403194176,1769263840905,-500.0,0.00013017,2]
[403194177,1769263840914,-500.0,0.00013017,2]
[403194179,1769263840923,-500.0,0.00013017,2]
[403194180,1769263840933,-500.0,0.00013017,2]
[403194181,1769263840944,-500.0,0.00013017,2]
[403194182,1769263840954,-151.0,0.00013017,2]
[403194183,1769263840963,-151.0,0.00013017,2]
[403194184,1769263840972,-151.0,0.00013017,2]
[403194185,1769263840982,-200.10887185,0.00013017,2]
[403194186,1769263840991,-534.33697893,0.00013017,2]
[403194187,1769263841000,-2181.674,0.00013024,2]
[403194188,1769263841010,-163.51,0.00013024,2]
[403194189,1769263841019,-198.9795,0.00013025,2]
[403194190,1769263841028,-500.0,0.00013025,2]
[403194191,1769263841038,-166.66,0.0001308,2]
[403194192,1769263841047,-326.49485469,0.00013156,2]
[403194193,1769263841057,-150.0,0.00013253,2]
[403194194,1769263841066,-500.0,0.00013253,2]
[403194195,1769263841075,-150.0,0.00013253,2]
[403194196,1769263841084,-150.0,0.00013253,2]
[403194197,1769263841094,-150.0,0.00013253,2]
[403194198,1769263841103,-500.0,0.00013253,2]
[403194199,1769263841117,-150.0,0.00013253,2]
[403194200,1769263841126,-500.0,0.00013253,2]
[403194201,1769263841137,-500.0,0.00013253,2]
[403194202,1769263841147,-150.0,0.00013253,2]
[403194203,1769263841156,-150.0,0.00013253,2]
[403194204,1769263841165,-1600.0,0.00013284,2]
[403194205,1769263841174,-500.0,0.00013299,2]
[403194206,1769263841184,-150.0,0.00013308,2]
[403194207,1769263841193,-500.0,0.00013308,2]
[403194208,1769263841202,-150.0,0.00013308,2]
[403194209,1769263841212,-150.0,0.00013308,2]
[403194210,1769263841221,-500.0,0.00013308,2]
[403194211,1769263841231,-500.0,0.00013308,2]
[403194212,1769263841240,-500.0,0.00013308,2]
[403194213,1769263841597,-150.0,0.00013308,2]
[403194214,1769263841606,-150.0,0.00013333,2]
[403194215,1769263841616,-166.66,0.00013334,2]
[403194216,1769263841625,-293.0,0.00013363,2]
[403194217,1769263841634,-156.18320436,0.00013363,2]
[403194218,1769263841644,-200.0,0.00013363,2]
[403194219,1769263841654,-150.0,0.00013363,2]
[403194220,1769263841663,-300.0,0.00013363,2]
[403194221,1769263841673,-150.0,0.00013363,2]
[403194222,1769263841682,-500.0,0.00013363,2]
[403194223,1769263841692,-150.0,0.00013363,2]
[403194224,1769263841701,-150.0,0.00013388,2]
[403194225,1769263841711,-398.32,0.00013404,2]
[403194226,1769263841720,-203.21260792,0.00013417,2]
[403194227,1769263841730,-350.0,0.00013417,2]
[403194228,1769263841739,-150.0,0.00013417,2]
[403194229,1769263841749,-150.0,0.00013424,2]
[403194230,1769263841758,-500.0,0.00013424,2]
[403194231,1769263841768,-150.0,0.00013424,2]
[403194232,1769263841778,-778.0,0.00013424,2]
[403194233,1769263841792,-420.0,0.00013425,2]
[403194234,1769263841802,-250.0,0.00013427,2]
[403194235,1769263841812,-1680.0,0.00013427,2]
[403194236,1769263841822,-150.0,0.00013443,2]
[403194237,1769263841832,-150.0,0.00013472,2]
[403194238,1769263841842,-9712.15874444,0.00013478,2]
[403194239,1769263841852,-150.0,0.00013479,2]
[403194240,1769263841861,-500.0,0.00013479,2]
[403194241,1769263841870,-150.0,0.00013479,2]
[403194242,1769263841879,-778.0,0.00013479,2]
[403194243,1769263841888,-232.13655039,0.00013527,2]
[403194244,1769263841897,-150.0,0.00013534,2]
[403194245,1769263841906,-500.0,0.00013534,2]
[403194246,1769263841916,-150.0,0.00013534,2]
[403194247,1769263841925,-778.0,0.00013534,2]
[403194248,1769263841937,-516.33940849,0.00013573,2]
[403194249,1769263841946,-500.0,0.00013588,2]
[403194250,1769263841956,-778.0,0.00013588,2]
[403194251,1769263841966,-500.0,0.00013607,2]
[403194252,1769263841976,-150.0,0.00013607,2]
[403194253,1769263841986,-500.0,0.00013607,2]
[403194254,1769263841995,-150.0,0.00013607,2]
[403194255,1769263842007,-150.0,0.00013607,2]
[403194256,1769263842017,-252.63713623,0.00013607,2]
[403194257,1769263842026,-500.0,0.00013607,2]
[403194258,1769263842036,-150.0,0.00013607,2]
[403194259,1769263842045,-150.0,0.00013607,2]
[403194260,1769263842056,-1012.28,0.00013607,2]
[403194261,1769263842065,-286.14,0.00013635,2]
[403194262,1769263842075,-500.0,0.00013643,2]
[403194263,1769263842085,-778.0,0.00013643,2]
[403194264,1769263842095,-164.21135863,0.00013662,2]
[403194265,1769263842105,-500.0,0.00013662,2]
[403194266,1769263842114,-500.0,0.00013662,2]
[403194267,1769263842123,-150.0,0.00013662,2]
[403194268,1769263842133,-150.0,0.00013662,2]
[403194269,1769263842142,-500.0,0.00013662,2]
[403194270,1769263842151,-225.50315905,0.00013662,2]
[403194271,1769263842161,-200.0,0.00013662,2]
[403194272,1769263842174,-500.0,0.00013698,2]
[403194273,1769263842183,-778.0,0.00013698,2]
[403194274,1769263842192,-500.0,0.00013698,2]
[403194275,1769263842202,-500.0,0.00013698,2]
[403194276,1769263842211,-500.0,0.00013698,2]
[403194277,1769263842221,-500.0,0.00013698,2]
[403194278,1769263842230,-500.0,0.00013698,2]
[403194279,1769263842240,-500.0,0.00013698,2]
[403194280,1769263842249,-500.0,0.00013698,2]
[403194281,1769263842258,-501.14381708,0.00013698,2]
[403194282,1769263842267,-500.0,0.00013698,2]
[403194283,1769263842276,-510.98377513,0.00013698,2]
[403194285,1769263842286,-500.0,0.00013698,2]
[403194286,1769263842295,-500.0,0.00013698,2]
[403194287,1769263842304,-500.0,0.00013698,2]
[403194288,1769263842313,-500.0,0.00013698,2]
[403194289,1769263842322,-512.6608624,0.00013698,2]
[403194290,1769263842332,-500.0,0.00013698,2]
[403194291,1769263842342,-500.0,0.00013698,2]
[403194292,1769263842353,-500.0,0.00013698,2]
[403194293,1769263842362,-500.0,0.00013698,2]
[403194294,1769263842371,-500.0,0.00013698,2]
[403194295,1769263842380,-500.0,0.00013698,2]
[403194296,1769263842390,-233.17455593,0.00013698,2]
[403194297,1769263842400,-500.0,0.00013698,2]
[403194298,1769263842409,-500.0,0.00013698,2]
[403194299,1769263842420,-500.0,0.00013698,2]
[403194300,1769263842429,-500.0,0.00013698,2]
[403194301,1769263842438,-500.0,0.00013698,2]
[403194302,1769263842447,-500.0,0.00013698,2]
[403194303,1769263842457,-171.84070592,0.00013699,3]
[403194304,1769263842466,-150.07696773,0.00013699,3]
[403194305,1769263842476,-200.0,0.00013699,2]
[403194306,1769263842486,-500.0,0.00013717,2]
[403194307,1769263842495,-500.0,0.00013717,2]
[403194308,1769263842504,-200.0,0.00013717,2]
[403194309,1769263842513,-200.0,0.00013717,2]
[403194310,1769263842523,-500.0,0.00013717,2]
[403194311,1769263842532,-500.0,0.00013753,2]
[403194312,1769263842541,-778.0,0.00013753,2]
[403194313,1769263842555,-500.0,0.00013771,2]
[403194314,1769263842564,-450.0,0.00013771,2]
[403194315,1769263842574,-350.97,0.00013799,2]
[403194316,1769263842584,-500.0,0.00013808,2]
[403194317,1769263842593,-778.0,0.00013808,2]
[403194318,1769263842603,-500.0,0.00013826,2]